bitfinex/quotes_BTCUSD_20250825
["timestamp","ask_amount","ask_price","bid_price","bid_amount"]
[1756105419508,1.1089912,112190.0,112180.0,0.00519]
[1756105419946,1.1089912,112190.0,112180.0,5e-05]
[1756105420389,1.1088712,112190.0,112180.0,0.00519]
[1756105421525,0.9490312,112190.0,112180.0,0.00519]
[1756105423290,0.6090312,112190.0,112180.0,0.00519]
[1756105423687,0.9422167,112190.0,112180.0,0.00519]
[1756105424323,0.9422167,112190.0,112180.0,0.17669283]
[1756105424518,0.9222382,112190.0,112180.0,0.17669283]
[1756105425138,0.9222382,112190.0,112180.0,0.17469283]
[1756105425370,0.9222382,112190.0,112180.0,5e-05]
[1756105425820,0.9490282,112190.0,112180.0,5e-05]
[1756105426035,1.1088682,112190.0,112180.0,0.00319]
[1756105426271,0.92279511,112190.0,112180.0,0.00519]
[1756105426497,0.76295511,112190.0,112180.0,0.00519]
[1756105426728,0.36679,112190.0,112180.0,0.00519]
[1756105427169,0.9490282,112190.0,112180.0,0.00719]
[1756105428085,0.9490282,112190.0,112180.0,0.00205]
[1756105430280,0.9490282,112190.0,112180.0,5e-05]
[1756105431656,0.36679,112190.0,112180.0,5e-05]
[1756105431866,0.9490282,112190.0,112180.0,5e-05]
[1756105432084,0.98974098,112190.0,112180.0,5e-05]
[1756105432511,1.14958098,112190.0,112180.0,5e-05]
[1756105432727,0.56734278,112190.0,112180.0,5e-05]
[1756105432934,1.14958098,112190.0,112180.0,5e-05]
[1756105433343,0.98974098,112190.0,112180.0,5e-05]
[1756105433553,1.15042098,112190.0,112180.0,5e-05]
[1756105433762,0.98974098,112190.0,112180.0,5e-05]
[1756105433968,0.98974098,112190.0,112180.0,0.00319]
[1756105434172,1.15034098,112190.0,112180.0,0.00319]
[1756105434677,1.15026098,112190.0,112180.0,0.00519]
[1756105434922,0.9490282,112190.0,112180.0,0.00519]
[1756105435172,1.1095482,112190.0,112180.0,0.00519]
[1756105435864,1.1095482,112190.0,112180.0,0.00319]
[1756105436074,1.1095482,112190.0,112180.0,5e-05]
[1756105438234,1.1092682,112190.0,112180.0,5e-05]
[1756105438445,1.1092682,112190.0,112180.0,0.00319]
[1756105438646,1.11826585,112190.0,112180.0,0.00319]
[1756105439274,0.53602765,112190.0,112180.0,0.00519]
[1756105439488,1.11826585,112190.0,112180.0,0.00519]
[1756105439701,1.11826585,112190.0,112180.0,0.00319]
[1756105439903,1.11826585,112190.0,112180.0,0.00519]
[1756105440597,1.11818585,112190.0,112180.0,0.00519]
[1756105440807,0.95802585,112190.0,112180.0,0.00519]
[1756105441223,0.94914585,112190.0,112180.0,0.00519]
[1756105441865,1.10926585,112190.0,112180.0,0.00519]
[1756105442728,1.10918585,112190.0,112180.0,0.00519]
[1756105444128,1.10906585,112190.0,112180.0,0.00519]
[1756105444371,0.36690765,112190.0,112180.0,0.00519]
[1756105444583,0.36690765,112190.0,112180.0,0.17669283]
[1756105444769,0.00899765,112190.0,112180.0,0.17892139]
[1756105445067,0.00899765,112190.0,112180.0,0.17669283]
[1756105445323,1.1090262,112200.0,112180.0,0.17892139]
[1756105445610,1.63176208,112200.0,112190.0,0.17150283]
[1756105445859,1.47192208,112200.0,112190.0,0.17464283]
[1756105446112,1.47192208,112200.0,112190.0,0.17664283]
[1756105446778,1.47192208,112200.0,112190.0,0.17764283]
[1756105447223,1.44513408,112200.0,112190.0,0.17764283]
[1756105447479,1.43126657,112200.0,112190.0,0.09302475]
[1756105447693,1.59110657,112200.0,112190.0,0.17664283]
[1756105447913,1.59110657,112200.0,112190.0,0.00414]
[1756105448139,1.59110657,112200.0,112190.0,0.001]
[1756105448359,1.61789357,112200.0,112190.0,0.001]
[1756105448792,1.61789357,112200.0,112190.0,0.00414]
[1756105449024,1.61789357,112200.0,112190.0,0.00614]
[1756105449240,1.61789357,112200.0,112190.0,0.00514]
[1756105449493,1.61789357,112200.0,112190.0,0.00714]
[1756105449717,1.61789357,112200.0,112190.0,0.002]
[1756105449961,1.03585454,112200.0,112190.0,0.002]
[1756105450192,1.61789357,112200.0,112190.0,0.002]
[1756105450427,2.1999326,112200.0,112190.0,0.002]
[1756105450885,2.28681735,112200.0,112190.0,0.002]
[1756105451577,1.12273929,112200.0,112190.0,0.002]
[1756105451807,2.28681735,112200.0,112190.0,0.002]
[1756105452066,1.12273929,112200.0,112190.0,0.002]
[1756105452300,2.28681735,112200.0,112180.0,5e-05]
[1756105452528,2.28681735,112200.0,112180.0,0.00324]
[1756105452529,0.15984,112190.0,112180.0,0.00324]
[1756105452754,0.74187903,112190.0,112180.0,0.00527]
[1756105452986,0.76867003,112190.0,112180.0,0.00527]
[1756105453412,0.186631,112190.0,112180.0,0.00527]
[1756105453676,0.76867003,112190.0,112180.0,0.00527]
[1756105453907,0.76867003,112190.0,112180.0,0.00627]
[1756105455122,0.76867003,112190.0,112180.0,0.00424]
[1756105455349,0.76867003,112190.0,112180.0,0.00627]
[1756105457028,0.60883003,112190.0,112180.0,0.00627]
[1756105457263,0.76867003,112190.0,112180.0,0.00627]
[1756105458184,0.60883003,112190.0,112180.0,0.00627]
[1756105458419,0.76867003,112190.0,112180.0,0.00424]
[1756105458640,0.76867003,112190.0,112180.0,0.00105]
[1756105459091,0.76867003,112190.0,112180.0,0.00324]
[1756105459346,0.76867003,112190.0,112180.0,0.00627]
[1756105459558,0.76867003,112190.0,112180.0,0.00527]
[1756105460054,0.60883003,112190.0,112180.0,0.00727]
[1756105460284,0.76867003,112190.0,112180.0,0.00727]
[1756105461251,0.186631,112190.0,112180.0,0.00727]
[1756105461480,0.76867003,112190.0,112180.0,0.00727]
[1756105462616,1.10867003,112190.0,112180.0,0.00727]
[1756105462848,0.94883003,112190.0,112180.0,0.00727]
[1756105465439,1.10863003,112190.0,112180.0,0.00205]
[1756105468583,1.2815238,112190.0,112180.0,0.00205]
[1756105469281,1.2815238,112190.0,112180.0,5e-05]
[1756105469505,1.32114438,112190.0,112180.0,5e-05]
[1756105469723,1.32114438,112190.0,112180.0,0.00105]
[1756105469969,1.32114438,112190.0,112180.0,5e-05]
[1756105470920,1.32114438,112190.0,112180.0,0.00105]
[1756105473037,1.54080271,112190.0,112180.0,5e-05]
[1756105473275,1.49941338,112190.0,112180.0,5e-05]
[1756105473558,2.40115939,112190.0,112180.0,5e-05]
[1756105473808,2.24135939,112190.0,112180.0,5e-05]
[1756105474118,2.40115939,112190.0,112180.0,5e-05]
[1756105474598,2.24135939,112190.0,112180.0,5e-05]
[1756105474806,2.40115939,112190.0,112180.0,5e-05]
[1756105475035,2.45200177,112190.0,112180.0,5e-05]
[1756105475493,1.70057126,112190.0,112180.0,5e-05]
[1756105476436,1.28293788,112190.0,112180.0,5e-05]
[1756105476665,1.28651088,112190.0,112180.0,5e-05]
[1756105478377,1.62651088,112190.0,112180.0,5e-05]
[1756105480110,1.62647088,112190.0,112180.0,5e-05]
[1756105481025,2.34344349,112190.0,112180.0,5e-05]
[1756105481249,2.5533231,112190.0,112180.0,5e-05]
[1756105481470,2.66988564,112190.0,112180.0,5e-05]
[1756105481695,2.57588564,112190.0,112180.0,5e-05]
[1756105481945,2.11407101,112180.0,112170.0,5e-05]
[1756105482169,2.3772783,112180.0,112170.0,5e-05]
[1756105482388,2.46414795,112180.0,112170.0,5e-05]
[1756105482608,2.45905332,112180.0,112170.0,5e-05]
[1756105483310,2.21242367,112180.0,112170.0,5e-05]
[1756105483534,2.37218367,112180.0,112170.0,5e-05]
[1756105483989,2.34317371,112180.0,112170.0,5e-05]
[1756105484239,2.18341371,112180.0,112170.0,5e-05]
[1756105484677,2.34317371,112180.0,112170.0,5e-05]
[1756105484898,2.16685117,112180.0,112170.0,5e-05]
[1756105485117,2.35710328,112180.0,112170.0,5e-05]
[1756105485340,2.27362099,112180.0,112170.0,5e-05]
[1756105485598,1.37836349,112180.0,112170.0,0.0033]
[1756105485830,1.37836015,112180.0,112170.0,0.0033]
[1756105486053,1.37836015,112180.0,112170.0,0.00543]
[1756105486054,1.37836048,112180.0,112170.0,0.00543]
[1756105486288,1.21860044,112180.0,112170.0,0.00543]
[1756105486507,1.36091142,112180.0,112170.0,0.00543]
[1756105486725,1.91812403,112180.0,112170.0,0.00543]
[1756105486946,2.09533305,112180.0,112170.0,0.00543]
[1756105487170,2.1822027,112180.0,112170.0,0.0033]
[1756105487398,2.0224427,112180.0,112170.0,0.0033]
[1756105487617,2.09533305,112180.0,112170.0,0.00543]
[1756105488711,1.93557305,112180.0,112170.0,0.00543]
[1756105488926,2.09533305,112180.0,112170.0,0.00543]
[1756105490972,2.0813799,112180.0,112170.0,0.00543]
[1756105491591,2.1753799,112180.0,112170.0,0.00543]
[1756105491809,2.0813799,112180.0,112170.0,0.00543]
[1756105492054,1.00695827,112180.0,112170.0,0.00543]
[1756105492262,1.34696256,112180.0,112170.0,0.00543]
[1756105492476,1.33042236,112180.0,112170.0,0.00543]
[1756105493336,1.33042236,112180.0,112170.0,0.00643]
[1756105493775,0.61344975,112180.0,112170.0,0.00643]
[1756105493991,1.33042236,112180.0,112170.0,0.00643]
[1756105495126,1.33038236,112180.0,112170.0,0.00743]
[1756105495576,1.33038236,112180.0,112170.0,0.00205]
[1756105495761,1.33038236,112180.0,112170.0,0.00743]
[1756105496040,1.33038236,112180.0,112170.0,0.00643]
[1756105496469,1.33038236,112180.0,112170.0,0.00543]
[1756105497751,1.17066236,112180.0,112170.0,0.00543]
[1756105497999,1.33038236,112180.0,112170.0,0.00543]
[1756105498215,1.17066236,112180.0,112170.0,0.00543]
[1756105498499,1.33038236,112180.0,112170.0,0.00543]
[1756105498734,1.17066236,112180.0,112170.0,0.00543]
[1756105498978,1.33038236,112180.0,112170.0,0.00543]
[1756105500599,2.09770891,112180.0,112170.0,5e-05]
[1756105500803,2.14630109,112180.0,112170.0,5e-05]
[1756105501034,2.17310309,112180.0,112170.0,5e-05]
[1756105501486,2.01338309,112180.0,112170.0,5e-05]
[1756105501694,2.68255817,112180.0,112170.0,5e-05]
[1756105501907,2.83348289,112180.0,112170.0,5e-05]
[1756105502573,1.24861295,112180.0,112170.0,5e-05]
[1756105502797,2.68255817,112180.0,112170.0,5e-05]
[1756105503017,2.76604046,112180.0,112170.0,5e-05]
[1756105503266,2.58855817,112180.0,112170.0,5e-05]
[1756105503472,1.6767186,112180.0,112170.0,0.00543]
[1756105503680,1.87158463,112180.0,112170.0,5e-05]
[1756105503898,2.58855724,112180.0,112170.0,5e-05]
[1756105504110,2.67542689,112180.0,112170.0,5e-05]
[1756105504803,2.337462,112180.0,112170.0,5e-05]
[1756105504993,2.497142,112180.0,112170.0,5e-05]
[1756105505661,2.67542689,112180.0,112170.0,5e-05]
[1756105506355,1.69329974,112180.0,112170.0,0.00543]
[1756105506544,1.67585072,112180.0,112170.0,0.00543]
[1756105506778,1.4553205,112180.0,112170.0,0.00543]
[1756105506990,1.47272952,112180.0,112170.0,0.00543]
[1756105507728,0.92003575,112180.0,112170.0,0.00543]
[1756105508146,1.26003575,112180.0,112170.0,0.00543]
[1756105508368,1.25115575,112180.0,112170.0,0.00543]
[1756105508584,1.23457461,112180.0,112170.0,0.00543]
[1756105509658,1.23453461,112180.0,112170.0,0.00543]
[1756105510690,1.07489461,112180.0,112170.0,0.00543]
[1756105510909,1.23453461,112180.0,112170.0,0.00543]
[1756105511789,1.23453461,112180.0,112170.0,0.02194771]
[1756105514574,1.23453461,112180.0,112170.0,0.27993409]
[1756105514575,0.014672,112180.0,112170.0,0.27993409]
[1756105514786,0.008172,112180.0,112170.0,0.27993409]
[1756105515002,0.004232,112180.0,112170.0,0.27993409]
[1756105515205,0.71697261,112190.0,112180.0,0.01651771]
[1756105515422,0.71697261,112190.0,112180.0,0.10563102]
[1756105516022,0.50903543,112200.0,112190.0,0.01651771]
[1756105516150,1.22605615,112200.0,112190.0,0.10340246]
[1756105516365,1.56605615,112200.0,112190.0,0.10340246]
[1756105517189,1.56605615,112200.0,112190.0,0.10345246]
[1756105517394,1.56605615,112200.0,112190.0,0.10545246]
[1756105518009,0.84004811,112200.0,112190.0,0.10545246]
[1756105518231,1.55702072,112200.0,112190.0,0.10545246]
[1756105518622,1.56594348,112200.0,112190.0,0.10550246]
[1756105519279,1.56594348,112200.0,112190.0,0.10750246]
[1756105521144,0.84897087,112200.0,112190.0,0.10750246]
[1756105521401,1.56594348,112200.0,112190.0,0.10750246]
[1756105525885,0.84897087,112200.0,112190.0,0.10750246]
[1756105526081,1.56594348,112200.0,112190.0,0.10750246]
[1756105526695,1.56910348,112200.0,112190.0,0.10750246]
[1756105528546,1.73064348,112200.0,112190.0,0.20750246]
[1756105529386,1.57116348,112200.0,112190.0,0.20750246]
[1756105529596,1.73064348,112200.0,112190.0,0.20750246]
[1756105529805,0.84897087,112200.0,112190.0,0.20750246]
[1756105530019,1.56594348,112200.0,112190.0,0.20750246]
[1756105530461,1.57116348,112200.0,112190.0,0.20750246]
[1756105531068,0.85419087,112200.0,112190.0,0.20750246]
[1756105531272,1.57116348,112200.0,112190.0,0.20750246]
[1756105533368,1.58773169,112200.0,112190.0,0.20750246]
[1756105533968,0.85419087,112200.0,112190.0,0.20750246]
[1756105534214,1.58567169,112200.0,112190.0,0.20750246]
[1756105534433,1.58773169,112200.0,112190.0,0.20750246]
[1756105535481,1.58251169,112200.0,112190.0,0.20750246]
[1756105535820,1.58567169,112200.0,112190.0,0.20750246]
[1756105536281,1.58773169,112200.0,112190.0,0.20750246]
[1756105538996,2.32127251,112200.0,112190.0,0.20750246]
[1756105539214,2.48063251,112200.0,112190.0,0.02061771]
[1756105539642,2.48063251,112200.0,112190.0,0.0041]
[1756105539852,2.48063251,112200.0,112190.0,0.02061771]
[1756105540289,2.48063251,112200.0,112190.0,0.01661771]
[1756105540714,2.48063251,112200.0,112190.0,0.01761771]
[1756105541566,2.48063251,112200.0,112190.0,0.0021]
[1756105541802,2.48063251,112200.0,112190.0,0.01861771]
[1756105542033,2.50742651,112200.0,112190.0,0.01861771]
[1756105542466,2.50742651,112200.0,112190.0,0.01761771]
[1756105542704,2.50742651,112200.0,112190.0,0.0011]
[1756105542915,2.50742651,112200.0,112190.0,0.01761771]
[1756105543357,2.50742651,112200.0,112190.0,0.01661771]
[1756105545116,1.04030487,112200.0,112190.0,0.01661771]
[1756105545328,2.50738651,112200.0,112190.0,0.01661771]
[1756105546389,2.34806651,112200.0,112190.0,0.01661771]
[1756105546621,2.69858993,112200.0,112190.0,0.0001]
[1756105546835,0.35744902,112190.0,112180.0,0.01651771]
[1756105547048,1.79070459,112190.0,112170.0,0.01656771]
[1756105547262,1.79070459,112190.0,112170.0,5e-05]
[1756105547263,2.07368541,112180.0,112170.0,5e-05]
[1756105547469,2.07368541,112180.0,112160.0,0.01651771]
[1756105547470,0.34,112170.0,112160.0,0.01651771]
[1756105547674,1.96852164,112170.0,112160.0,0.01651771]
[1756105547895,1.97147164,112170.0,112160.0,0.01651771]
[1756105548124,2.05835639,112170.0,112160.0,0.01651771]
[1756105548337,2.09938166,112170.0,112160.0,0.01651771]
[1756105548770,2.09938166,112170.0,112150.0,0.01656771]
[1756105548986,0.47007002,112170.0,112160.0,0.01651771]
[1756105549164,0.65615202,112170.0,112160.0,0.01651771]
[1756105549432,0.62935002,112170.0,112160.0,0.01651771]
[1756105549649,0.65910202,112170.0,112160.0,0.01651771]
[1756105550074,1.37619698,112170.0,112160.0,0.01751771]
[1756105550286,1.37619698,112170.0,112160.0,0.002]
[1756105550719,1.37619698,112170.0,112160.0,0.01851771]
[1756105551139,1.37619698,112170.0,112160.0,0.002]
[1756105551353,1.37619698,112170.0,112160.0,0.01851771]
[1756105551612,1.21691698,112170.0,112160.0,0.01851771]
[1756105551819,1.37619698,112170.0,112160.0,0.01851771]
[1756105553237,1.13003223,112170.0,112160.0,0.01851771]
[1756105553788,1.13003223,112170.0,112160.0,0.01876771]
[1756105553789,1.08389696,112170.0,112160.0,0.01876771]
[1756105554013,1.08389696,112170.0,112160.0,0.11876771]
[1756105554474,1.05709496,112170.0,112160.0,0.11876771]
[1756105554694,0.15924,112180.0,112160.0,0.11876771]
[1756105554695,0.026796,112180.0,112170.0,0.01651771]
[1756105554935,0.4484,112190.0,112180.0,0.01651771]
[1756105555153,0.66821087,112200.0,112190.0,0.11651771]
[1756105555426,1.41209783,112200.0,112190.0,0.11676771]
[1756105556102,1.59285783,112200.0,112190.0,0.11676771]
[1756105556334,1.75209783,112200.0,112190.0,0.11676771]
[1756105556815,1.22606583,112200.0,112190.0,0.20365246]
[1756105557245,0.84004811,112200.0,112190.0,0.20380246]
[1756105557464,0.84907226,112200.0,112190.0,0.20365246]
[1756105557676,1.56616722,112200.0,112190.0,0.20365246]
[1756105558948,1.56616722,112200.0,112190.0,0.20565246]
[1756105559838,1.56616722,112200.0,112190.0,0.20765246]
[1756105560281,0.84907226,112200.0,112190.0,0.20765246]
[1756105560509,1.56616722,112200.0,112190.0,0.20765246]
[1756105561600,1.57127722,112200.0,112190.0,0.20740246]
[1756105562108,1.73043722,112200.0,112190.0,0.12051771]
[1756105562545,1.73043722,112200.0,112190.0,0.004]
[1756105562785,1.73043722,112200.0,112190.0,0.02051771]
[1756105563279,1.04013326,112200.0,112190.0,0.02051771]
[1756105563537,1.75722822,112200.0,112190.0,0.02051771]
[1756105563748,1.75722822,112200.0,112190.0,0.01851771]
[1756105564678,1.59806822,112200.0,112190.0,0.01851771]
[1756105564917,1.75718822,112200.0,112190.0,0.01851771]
[1756105565136,1.75718822,112200.0,112190.0,0.01651771]
[1756105567206,1.54508741,112200.0,112190.0,0.01651771]
[1756105569870,2.26218237,112200.0,112190.0,0.01651771]
[1756105570081,1.54508741,112200.0,112190.0,0.01651771]
[1756105570267,0.34,112190.0,112180.0,0.1]
[1756105570519,1.22121496,112190.0,112180.0,0.11651771]
[1756105571600,1.22121496,112190.0,112180.0,0.11751771]
[1756105571844,1.06217496,112190.0,112180.0,0.11776771]
[1756105572735,1.06217496,112190.0,112180.0,0.11876771]
[1756105573374,1.05325496,112190.0,112180.0,0.11851771]
[1756105574010,1.05325496,112190.0,112180.0,0.002]
[1756105574226,0.88117496,112190.0,112180.0,0.01851771]
[1756105574920,0.90796796,112190.0,112180.0,0.01851771]
[1756105575360,0.90796796,112190.0,112180.0,0.002]
[1756105576437,1.42623696,112190.0,112180.0,0.002]
[1756105576658,1.53057073,112190.0,112180.0,0.002]
[1756105577548,1.53057073,112190.0,112180.0,0.001]
[1756105578005,0.34,112180.0,112170.0,0.01651771]
[1756105578230,1.28672496,112180.0,112170.0,0.01651771]
[1756105578473,1.46797985,112180.0,112160.0,0.01651771]
[1756105578706,1.21898496,112170.0,112160.0,0.01651771]
[1756105578949,1.21898496,112170.0,112150.0,0.01656771]
[1756105578950,0.34,112160.0,112150.0,0.01656771]
[1756105579197,1.22109496,112160.0,112150.0,0.01656771]
[1756105579417,1.24789596,112160.0,112150.0,5e-05]
[1756105579642,1.96499092,112160.0,112150.0,0.01656771]
[1756105580127,2.14330761,112160.0,112150.0,5e-05]
[1756105580358,2.06932469,112160.0,112150.0,0.01704924]
[1756105580588,2.06932469,112160.0,112150.0,0.00253153]
[1756105580816,2.06932469,112160.0,112150.0,0.01904924]
[1756105581076,2.06932469,112160.0,112150.0,0.01704924]
[1756105581300,1.91040469,112160.0,112150.0,0.01904924]
[1756105581547,1.35222973,112160.0,112150.0,0.01904924]
[1756105581765,1.24789596,112160.0,112150.0,0.01704924]
[1756105582225,1.24785596,112160.0,112150.0,0.01704924]
[1756105583129,1.08897596,112160.0,112150.0,0.01704924]
[1756105583355,1.28735442,112160.0,112150.0,0.01704924]
[1756105583843,1.12843442,112160.0,112150.0,0.01704924]
[1756105584266,0.528651,112160.0,112150.0,0.11729924]
[1756105584470,1.24785596,112160.0,112150.0,0.11729924]
[1756105585506,1.24277596,112160.0,112150.0,0.11729924]
[1756105586046,1.24574596,112160.0,112150.0,0.11729924]
[1756105586250,1.24785596,112160.0,112150.0,0.11729924]
[1756105586449,1.24785596,112160.0,112150.0,0.11704924]
[1756105586877,1.08686596,112160.0,112150.0,0.11729924]
[1756105587085,1.21593496,112160.0,112150.0,0.20418399]
[1756105587291,0.49884,112160.0,112150.0,0.20418399]
[1756105587546,1.21593496,112160.0,112150.0,0.20418399]
[1756105588795,0.34,112160.0,112150.0,0.20418399]
[1756105589000,1.21593496,112160.0,112150.0,0.20418399]
[1756105590351,1.05709496,112160.0,112150.0,0.20518399]
[1756105590595,1.21593496,112160.0,112150.0,0.20618399]
[1756105591471,1.22101496,112160.0,112150.0,0.20593399]
[1756105591680,1.22101496,112160.0,112150.0,0.11904924]
[1756105592541,1.24781396,112160.0,112150.0,0.11904924]
[1756105594064,1.08897396,112160.0,112150.0,0.11929924]
[1756105594273,0.07153,112180.0,112160.0,0.11651771]
[1756105594455,0.87585496,112170.0,112160.0,0.20340246]
[1756105594691,0.87585496,112170.0,112160.0,0.20365246]
[1756105595364,1.21585496,112170.0,112160.0,0.20365246]
[1756105595799,1.05709496,112170.0,112160.0,0.20365246]
[1756105596004,1.21585496,112170.0,112160.0,0.20365246]
[1756105596184,1.05709496,112170.0,112160.0,0.20365246]
[1756105596396,1.21585496,112170.0,112160.0,0.20365246]
[1756105596611,0.34,112170.0,112160.0,0.20365246]
[1756105596826,0.34,112170.0,112160.0,0.20380246]
[1756105597040,0.71709496,112180.0,112170.0,0.11651771]
[1756105597246,0.87581496,112180.0,112170.0,0.11676771]
[1756105597469,0.49872,112180.0,112170.0,0.11676771]
[1756105597742,1.21581496,112180.0,112170.0,0.11676771]
[1756105599192,0.49872,112180.0,112170.0,0.20365246]
[1756105600083,0.49872,112180.0,112170.0,0.20565246]
[1756105600503,1.21577496,112180.0,112170.0,0.20565246]
[1756105601193,1.22097496,112180.0,112170.0,0.20540246]
[1756105603621,1.21886496,112180.0,112170.0,0.20565246]
[1756105604078,1.22097496,112180.0,112170.0,0.20565246]
[1756105605399,0.50177,112180.0,112170.0,0.20565246]
[1756105605819,1.22097496,112180.0,112170.0,0.20565246]
[1756105606032,1.22097496,112180.0,112170.0,0.20540246]
[1756105608010,1.22097496,112180.0,112170.0,0.11851771]
[1756105610385,1.21565496,112180.0,112170.0,0.11876771]
[1756105610668,0.49852,112180.0,112170.0,0.20565246]
[1756105611456,0.39227634,112200.0,112190.0,0.01651771]
[1756105611457,0.70857334,112200.0,112190.0,0.01651771]
[1756105611726,0.86920334,112200.0,112190.0,0.11651771]
[1756105612194,0.64212334,112200.0,112190.0,0.11651771]
[1756105612196,0.80064334,112200.0,112190.0,0.11651771]
[1756105612478,0.64212334,112200.0,112190.0,0.11651771]
[1756105612727,0.29697145,112200.0,112190.0,0.20365246]
[1756105613467,0.64217145,112200.0,112190.0,0.20365246]
[1756105613717,1.35842745,112200.0,112190.0,0.20340246]
[1756105613939,1.51690745,112200.0,112190.0,0.20540246]
[1756105614838,1.51690745,112200.0,112190.0,0.20565246]
[1756105615098,1.51170745,112200.0,112190.0,0.20565246]
[1756105615339,1.51690745,112200.0,112190.0,0.20765246]
[1756105615562,1.51690745,112200.0,112190.0,0.20740246]
[1756105619199,0.80065145,112200.0,112190.0,0.20740246]
[1756105619402,0.64217145,112200.0,112190.0,0.20765246]
[1756105619658,1.51678745,112200.0,112190.0,0.20765246]
[1756105619821,0.80053145,112200.0,112190.0,0.20765246]
[1756105620856,0.80053145,112200.0,112190.0,0.20740246]
[1756105621480,1.51678745,112200.0,112190.0,0.20765246]
[1756105621680,0.80053145,112200.0,112190.0,0.20765246]
[1756105622297,0.80053145,112200.0,112190.0,0.20740246]
[1756105623829,0.64217145,112200.0,112190.0,0.20765246]
[1756105624056,0.2879473,112200.0,112190.0,0.20765246]
[1756105625158,0.2879473,112200.0,112190.0,0.36593246]
[1756105625362,0.28865967,112200.0,112190.0,0.20740246]
[1756105625572,1.00491567,112200.0,112190.0,0.36568246]
[1756105625774,1.00491567,112200.0,112190.0,0.20740246]
[1756105626011,0.44693967,112200.0,112190.0,0.20740246]
[1756105626235,1.16319567,112200.0,112190.0,0.20540246]
[1756105626449,1.16319567,112200.0,112190.0,0.20940246]
[1756105626662,0.45610406,112200.0,112190.0,0.20940246]
[1756105626870,1.17236006,112200.0,112190.0,0.20940246]
[1756105627070,1.17236006,112200.0,112190.0,0.20740246]
[1756105627299,0.29571406,112200.0,112190.0,0.20765246]
[1756105627515,0.45395406,112200.0,112190.0,0.20765246]
[1756105627744,0.29262406,112200.0,112190.0,0.21065246]
[1756105627944,0.29571406,112200.0,112190.0,0.21065246]
[1756105629250,0.29782406,112200.0,112190.0,0.21040246]
[1756105629455,0.29782406,112200.0,112190.0,0.36864246]
[1756105630096,0.29782406,112200.0,112190.0,0.21040246]
[1756105630300,0.29262406,112200.0,112190.0,0.21065246]
[1756105630671,0.29582406,112200.0,112190.0,0.21065246]
[1756105630886,0.29780406,112200.0,112190.0,0.21040246]
[1756105631081,0.45600406,112200.0,112190.0,0.21040246]
[1756105631333,1.17226006,112200.0,112190.0,0.21040246]
[1756105631518,1.17226006,112200.0,112190.0,0.21045246]
[1756105632120,1.17226006,112200.0,112190.0,0.19393475]
[1756105633012,1.17226006,112200.0,112190.0,0.21045246]
[1756105633437,1.18951279,112200.0,112190.0,0.19393475]
[1756105633651,1.52951279,112200.0,112190.0,0.10805]
[1756105633873,1.52951279,112200.0,112190.0,0.12456771]
[1756105634306,1.52951279,112200.0,112190.0,0.10805]
[1756105634736,1.52951279,112200.0,112190.0,0.10505]
[1756105634949,1.52951279,112200.0,112190.0,0.00705]
[1756105634950,2.26302152,112200.0,112190.0,0.00705]
[1756105635159,2.30726354,112200.0,112190.0,0.02356771]
[1756105635799,2.3483983,112200.0,112190.0,0.00705]
[1756105636431,2.3483983,112200.0,112190.0,0.00505]
[1756105636432,2.43528305,112200.0,112190.0,0.00505]
[1756105636635,2.61353616,112200.0,112190.0,0.00505]
[1756105636840,2.61353616,112200.0,112190.0,0.00705]
[1756105637254,2.61353616,112200.0,112190.0,0.00105]
[1756105637470,2.61353616,112200.0,112190.0,0.00205]
[1756105637681,2.61353616,112200.0,112190.0,0.00105]
[1756105638052,2.61353616,112200.0,112190.0,0.00205]
[1756105638279,2.60465616,112200.0,112190.0,0.00205]
[1756105638471,2.42640305,112200.0,112190.0,0.00205]
[1756105639454,2.42640305,112200.0,112190.0,0.00105]
[1756105639663,2.66014171,112200.0,112190.0,0.00105]
[1756105640244,2.60465616,112200.0,112190.0,0.00105]
[1756105640450,2.60465616,112200.0,112190.0,5e-05]
[1756105641628,0.01744902,112180.0,112170.0,0.01656771]
[1756105641840,2.14313123,112180.0,112170.0,0.01656771]
[1756105642467,2.32141612,112180.0,112160.0,5e-05]
[1756105642682,2.07263123,112170.0,112160.0,0.00717339]
[1756105642889,2.07461123,112170.0,112160.0,0.00717339]
[1756105644162,2.10141323,112170.0,112160.0,0.00717339]
[1756105645006,2.10137323,112170.0,112160.0,0.00717339]
[1756105645405,2.14099686,112170.0,112160.0,0.00717339]
[1756105645620,2.14099686,112170.0,112160.0,5e-05]
[1756105646034,2.14099686,112170.0,112160.0,0.00717339]
[1756105646654,1.98291686,112170.0,112160.0,0.00717339]
[1756105646862,2.14099686,112170.0,112160.0,0.00717339]
[1756105648168,1.98291686,112170.0,112160.0,0.00717339]
[1756105648390,2.14099686,112170.0,112160.0,0.00717339]
[1756105648601,0.6739794,112170.0,112160.0,0.00717339]
[1756105648834,1.40748813,112170.0,112160.0,0.00717339]
[1756105649305,0.031982,112170.0,112160.0,0.00742339]
[1756105649541,0.524842,112170.0,112160.0,0.00742339]
[1756105649757,1.25835073,112170.0,112160.0,0.00742339]
[1756105650202,1.26353073,112170.0,112160.0,0.00717339]
[1756105650843,1.10549073,112170.0,112160.0,0.00817339]
[1756105651269,1.10549073,112170.0,112160.0,0.01142339]
[1756105651270,1.08358004,112170.0,112160.0,0.01142339]
[1756105651473,1.24166004,112170.0,112160.0,0.01042339]
[1756105652157,1.24486004,112170.0,112160.0,0.01042339]
[1756105652367,1.24684004,112170.0,112160.0,0.01042339]
[1756105652613,1.24166004,112170.0,112160.0,0.01042339]
[1756105652841,1.24166004,112170.0,112160.0,0.01242339]
[1756105652842,1.24684004,112170.0,112160.0,0.01242339]
[1756105653062,1.24684004,112170.0,112160.0,0.01217339]
[1756105653290,0.371982,112170.0,112160.0,0.01217339]
[1756105653505,1.29085024,112170.0,112160.0,0.01217339]
[1756105653712,1.24680004,112170.0,112160.0,0.01217339]
[1756105653939,1.26424906,112170.0,112160.0,0.00505]
[1756105654161,1.39220326,112170.0,112160.0,0.00505]
[1756105654400,1.39220326,112170.0,112160.0,0.01217339]
[1756105654612,1.47907291,112170.0,112160.0,0.01217339]
[1756105654817,0.35744902,112160.0,112150.0,5e-05]
[1756105655041,1.07940706,112160.0,112150.0,5e-05]
[1756105656120,1.07940706,112160.0,112150.0,0.00053153]
[1756105656983,1.23744706,112160.0,112150.0,0.00353153]
[1756105657186,0.52066902,112160.0,112150.0,0.00353153]
[1756105657394,1.23744706,112160.0,112150.0,0.00353153]
[1756105657621,0.52066902,112160.0,112150.0,0.00353153]
[1756105657850,1.23744706,112160.0,112150.0,0.00353153]
[1756105659313,1.26425106,112160.0,112150.0,0.00353153]
[1756105659524,1.71265106,112160.0,112150.0,0.00353153]